bitfinex/quotes_SOLUSD_20250318
["timestamp","ask_amount","ask_price","bid_price","bid_amount"]
[1742259114939,27.31420245,126.7,126.62,0.64256406]
[1742259115123,27.31420245,126.7,126.65,19.45160245]
[1742259116637,27.31420245,126.7,126.65,0.03]
[1742259116828,19.42160245,126.69,126.65,0.03]
[1742259117563,19.42160245,126.68,126.65,0.03]
[1742259118119,27.31580245,126.68,126.65,0.03]
[1742259119125,19.42160245,126.67,126.65,0.03]
[1742259119320,19.42160245,126.68,126.65,0.03]
[1742259120222,19.42160245,126.67,126.65,0.03]
[1742259120434,19.42160245,126.66,126.65,0.03]
[1742259121443,19.42160245,126.67,126.65,0.03]
[1742259121751,27.31600245,126.68,126.65,0.03]
[1742259122243,19.42160245,126.67,126.65,0.03]
[1742259122443,7.8944,126.68,126.65,0.03]
[1742259122444,26.72160245,126.66,126.65,0.03]
[1742259124242,34.61670245,126.66,126.65,0.03]
[1742259126448,53.83499759,126.66,126.65,0.03]
[1742259126632,19.42160245,126.63,126.62,0.64256406]
[1742259128837,27.31860245,126.63,126.62,0.64256406]
[1742259129151,19.42160245,126.63,126.62,0.64256406]
[1742259129555,27.31860245,126.63,126.62,0.64256406]
[1742259131148,19.42160245,126.63,126.62,0.64256406]
[1742259131332,27.31860245,126.63,126.62,0.64256406]
[1742259132347,27.60292559,126.63,126.62,0.64256406]
[1742259134553,27.31860245,126.63,126.62,0.64256406]
[1742259136144,19.42160245,126.63,126.62,0.64256406]
[1742259136840,19.42160245,126.64,126.62,0.64256406]
[1742259137038,7.8958,126.65,126.62,0.64256406]
[1742259137039,19.42160245,126.65,126.62,0.64256406]
[1742259137359,19.42160245,126.66,126.62,0.64256406]
[1742259137663,19.42160245,126.65,126.62,0.64256406]
[1742259138365,19.42160245,126.66,126.62,0.64256406]
[1742259138660,19.42160245,126.65,126.62,0.64256406]
[1742259139054,19.42160245,126.65,126.62,0.67256406]
[1742259139764,19.42160245,126.64,126.62,0.67256406]
[1742259140086,19.42160245,126.65,126.62,0.67256406]
[1742259140657,27.31790245,126.64,126.62,0.67256406]
[1742259142955,19.42160245,126.63,126.62,0.67256406]
[1742259144657,27.31860245,126.63,126.62,0.67256406]
[1742259145375,27.60292559,126.63,126.62,6.406e-05]
[1742259147171,27.60292559,126.63,126.55,2.8590343]
[1742259147172,67.90979759,126.63,126.55,2.8590343]
[1742259147379,19.42160245,126.58,126.55,2.8590343]
[1742259148054,19.42160245,126.59,126.55,2.8590343]
[1742259148974,7.9001,126.58,126.55,2.8590343]
[1742259149353,9.20532314,126.57,126.55,2.8590343]
[1742259149554,19.42160245,126.56,126.55,2.8590343]
[1742259150967,27.32290245,126.56,126.55,2.8590343]
[1742259151169,27.60722559,126.56,126.55,2.8590343]
[1742259151357,27.32290245,126.56,126.55,2.8590343]
[1742259152659,46.54119759,126.56,126.55,2.8590343]
[1742259153469,46.54119759,126.56,126.49,6.535]
[1742259153470,20.0,126.53,126.49,6.535]
[1742259153669,19.42160245,126.51,126.49,6.535]
[1742259153860,19.42160245,126.52,126.49,6.535]
[1742259154982,27.32540245,126.52,126.49,6.535]
[1742259155278,19.42160245,126.52,126.49,6.535]
[1742259156073,27.32510245,126.53,126.49,6.535]
[1742259156280,8.18382314,126.59,126.51,19.42160245]
[1742259156460,19.42160245,126.58,126.52,19.42160245]
[1742259156660,19.42160245,126.57,126.52,19.42160245]
[1742259156869,19.42160245,126.57,126.51,19.42160245]
[1742259157074,19.42160245,126.56,126.51,19.42160245]
[1742259157678,19.42160245,126.56,126.5,26.66160245]
[1742259158184,19.42160245,126.55,126.5,26.66160245]
[1742259158362,19.42160245,126.54,126.5,7.24]
[1742259159374,19.42160245,126.53,126.49,6.535]
[1742259160487,27.32490245,126.53,126.49,6.535]
[1742259161687,19.42160245,126.52,126.49,6.535]
[1742259162672,19.42160245,126.54,126.5,0.03]
[1742259163503,19.42160245,126.54,126.49,33.86210245]
[1742259163874,19.42160245,126.54,126.49,14.4405]
[1742259164073,19.42160245,126.54,126.49,33.86210245]
[1742259165192,19.42160245,126.55,126.49,33.86210245]
[1742259165689,81.8,126.56,126.51,19.42160245]
[1742259165690,19.42160245,126.56,126.51,19.42160245]
[1742259166775,19.42160245,126.56,126.52,7.9038]
[1742259166975,19.42160245,126.57,126.52,7.9038]
[1742259167892,19.42160245,126.58,126.52,27.32540245]
[1742259168096,19.42160245,126.59,126.53,19.42160245]
[1742259168678,19.42160245,126.59,126.54,7.9026]
[1742259168978,19.42160245,126.58,126.54,7.9026]
[1742259170906,19.42160245,126.59,126.54,7.9026]
[1742259171194,8.24502314,126.62,126.54,33.82880245]
[1742259171383,19.42160245,126.6,126.55,19.42160245]
[1742259171891,19.42160245,126.6,126.54,33.82880245]
[1742259172475,19.42160245,126.59,126.54,53.58530245]
[1742259174797,19.42160245,126.58,126.54,14.4072]
[1742259175475,19.42160245,126.57,126.54,6.5046]
[1742259175680,19.42160245,126.56,126.52,7.9038]
[1742259176302,19.42160245,126.54,126.51,14.5121]
[1742259176505,19.42160245,126.55,126.51,14.5121]
[1742259177686,7.48432314,126.59,126.51,33.93370245]
[1742259177902,19.42160245,126.55,126.51,14.5121]
[1742259179088,19.42160245,126.56,126.51,33.93370245]
[1742259180296,19.42160245,126.57,126.52,19.42160245]
[1742259181307,19.42160245,126.57,126.51,60.89490245]
[1742259181509,19.42160245,126.56,126.51,21.7121]
[1742259182009,19.42160245,126.56,126.51,41.13370245]
[1742259183803,27.32300245,126.56,126.51,14.5121]
[1742259184306,19.42160245,126.56,126.51,14.5121]
[1742259184805,19.42160245,126.56,126.51,33.93370245]
[1742259185010,19.42160245,126.57,126.52,19.42160245]
[1742259185387,19.42160245,126.57,126.51,53.69490245]
[1742259185609,19.42160245,126.56,126.51,53.69490245]
[1742259185998,19.42160245,126.56,126.51,14.5121]
[1742259186198,19.42160245,126.55,126.51,14.5121]
[1742259189326,19.42160245,126.58,126.53,19.42160245]
[1742259189502,0.063,126.57,126.54,7.9026]
[1742259190098,0.063,126.57,126.56,27.45180245]
[1742259190620,0.063,126.57,126.56,8.0302]
[1742259190820,0.063,126.57,126.56,27.45180245]
[1742259191604,0.063,126.57,126.56,35.35310245]
[1742259192421,0.063,126.57,126.56,192.38707445]
[1742259192653,0.063,126.57,126.56,154.0315]
[1742259193417,0.063,126.57,126.56,173.45310245]
[1742259194201,0.063,126.57,126.56,154.0315]
[1742259194407,0.063,126.57,126.56,146.1302]
[1742259194806,0.063,126.57,126.56,154.0315]
[1742259195414,0.063,126.57,126.56,173.45310245]
[1742259198099,0.063,126.57,126.56,35.35310245]
[1742259198305,0.063,126.57,126.56,54.00275131]
[1742259199219,0.063,126.62,126.59,6.4423]
[1742259199425,0.063,126.62,126.6,26.64160245]
[1742259200331,0.063,126.62,126.6,34.54010245]
[1742259201425,0.063,126.62,126.61,19.42160245]
[1742259201725,0.063,126.62,126.6,34.54010245]
[1742259202104,0.063,126.62,126.6,26.64160245]
[1742259202299,0.063,126.62,126.6,7.22]
[1742259202518,19.48460245,126.62,126.56,374.58530245]
[1742259202829,19.42160245,126.61,126.56,236.48530245]
[1742259203020,19.42160245,126.61,126.56,209.02]
[1742259203228,19.42160245,126.6,126.56,7.22]
[1742259203927,19.42160245,126.61,126.56,7.22]
[1742259204228,7.8982,126.61,126.56,19.42160245]
[1742259204523,27.31980245,126.61,126.56,19.42160245]
[1742259206223,19.48460245,126.62,126.56,19.42160245]
[1742259206428,19.48460245,126.62,126.57,19.42160245]
[1742259206602,19.48460245,126.62,126.56,19.42160245]
[1742259207213,19.48460245,126.62,126.57,19.42160245]
[1742259208412,7.8982,126.61,126.57,19.42160245]
[1742259211532,27.31980245,126.61,126.56,19.42160245]
[1742259212553,19.42160245,126.6,126.55,26.67160245]
[1742259213143,7.8995,126.59,126.55,19.45160245]
[1742259213322,19.42160245,126.58,126.55,0.03]
[1742259213725,28.95960245,126.59,126.55,0.03]
[1742259215051,9.538,126.59,126.55,0.03]
[1742259215218,28.95960245,126.59,126.55,0.03]
[1742259216529,19.42160245,126.58,126.55,0.03]
[1742259216715,9.538,126.59,126.55,0.03]
[1742259216915,28.95960245,126.59,126.55,0.03]
[1742259218242,9.538,126.59,126.55,0.03]
[1742259218419,1.6385,126.59,126.55,19.45160245]
[1742259218622,1.6385,126.59,126.56,19.42160245]
[1742259219144,1.6385,126.59,126.55,19.45160245]
[1742259219653,0.063,126.62,126.58,19.42160245]
[1742259219818,0.063,126.62,126.61,19.42160245]
[1742259220723,0.063,126.62,126.61,27.31980245]
[1742259221151,0.063,126.62,126.61,19.42160245]
[1742259221319,0.063,126.62,126.59,7.16]
[1742259223531,0.063,126.62,126.58,19.42160245]
[1742259224033,0.063,126.62,126.57,19.42160245]
[1742259224219,0.063,126.62,126.58,19.42160245]
[1742259224944,0.063,126.62,126.57,19.42160245]
[1742259227148,7.8982,126.61,126.57,19.42160245]
[1742259227357,27.31980245,126.61,126.56,26.61160245]
[1742259227733,19.42160245,126.59,126.56,0.03]
[1742259228432,19.42160245,126.6,126.56,0.03]
[1742259228826,27.6438,126.61,126.56,19.45160245]
[1742259228827,27.31980245,126.61,126.56,19.45160245]
[1742259229147,27.31980245,126.61,126.56,27.35290245]
[1742259229349,7.8982,126.61,126.57,19.42160245]
[1742259230243,28.99430245,126.62,126.57,27.32230245]
[1742259230646,28.99430245,126.62,126.57,19.42160245]
[1742259230843,19.42160245,126.61,126.56,27.35270245]
[1742259233351,27.32010245,126.61,126.56,27.35270245]
[1742259234152,27.32010245,126.61,126.56,0.03]
[1742259234356,19.42160245,126.6,126.56,0.03]
[1742259235140,27.32010245,126.61,126.56,27.35290245]
[1742259235858,7.8985,126.61,126.56,27.35290245]
[1742259236958,7.8985,126.61,126.57,19.42160245]
[1742259237160,9.5728,126.62,126.57,20.38518985]
[1742259237541,1.6749,126.62,126.59,12.48448985]
[1742259237940,1.6749,126.62,126.58,12.48448985]
[1742259238951,0.063,126.62,126.59,20.38398985]
[1742259239152,0.063,126.62,126.59,27.40083852]
[1742259239353,0.063,126.62,126.61,19.50133852]
[1742259240773,0.063,126.62,126.6,19.50133852]
[1742259240969,0.063,126.62,126.59,26.60133852]
[1742259241460,19.50133852,126.6,126.56,0.03]
[1742259241646,19.50133852,126.59,126.56,0.03]
[1742259241961,26.60133852,126.59,126.56,0.03]
[1742259242961,27.40143852,126.58,126.56,0.03]
[1742259243363,7.9001,126.58,126.56,0.03]
[1742259243547,27.40143852,126.58,126.56,0.03]
[1742259244778,7.9001,126.58,126.56,0.03]
[1742259247152,27.40143852,126.58,126.56,0.03]
[1742259247657,7.9001,126.58,126.56,0.03]
[1742259248756,6.6694,126.62,126.56,0.03]
[1742259248757,0.063,126.62,126.57,19.50133852]
[1742259248960,0.063,126.62,126.6,19.50133852]
[1742259249166,0.063,126.62,126.61,19.50133852]
[1742259249358,0.063,126.62,126.58,6.4068]
[1742259249557,0.063,126.62,126.59,19.50133852]
[1742259249860,0.063,126.62,126.6,19.50133852]
[1742259250178,0.063,126.62,126.61,19.50133852]
[1742259250765,0.063,126.62,126.6,19.50133852]
[1742259252665,0.063,126.62,126.58,19.50133852]
[1742259252971,0.063,126.62,126.57,19.50133852]
[1742259253153,0.063,126.62,126.56,146.0311]
[1742259253154,19.56433852,126.62,126.56,19.53133852]
[1742259253354,19.50133852,126.6,126.56,0.03]
[1742259254970,27.39993852,126.61,126.56,0.03]
[1742259255178,27.39993852,126.61,126.56,19.53133852]
[1742259255871,27.39993852,126.61,126.56,0.03]
[1742259256250,19.50133852,126.6,126.56,0.03]
[1742259256774,19.50133852,126.59,126.56,0.03]
[1742259256971,19.50133852,126.6,126.56,0.03]
[1742259257758,0.063,126.62,126.58,19.50133852]
[1742259257955,0.063,126.62,126.57,19.50133852]
[1742259258561,0.063,126.62,126.58,19.50133852]
[1742259259673,0.063,126.62,126.59,7.8995]
[1742259260775,0.063,126.62,126.58,19.50133852]
[1742259260975,0.063,126.62,126.59,19.50133852]
[1742259262074,0.063,126.62,126.59,27.40083852]
[1742259263768,0.063,126.62,126.58,19.50133852]
[1742259263963,19.56433852,126.62,126.57,19.50133852]
[1742259264874,0.063,126.62,126.57,27.40143852]
[1742259265564,19.50133852,126.61,126.56,0.03]
[1742259265765,19.50133852,126.61,126.56,19.53133852]
[1742259266687,19.50133852,126.61,126.56,27.43263852]
[1742259266865,27.40003852,126.61,126.56,27.43263852]
[1742259267487,27.40003852,126.61,126.56,19.53133852]
[1742259267785,27.40003852,126.61,126.56,0.03]
[1742259267786,19.50133852,126.6,126.56,0.03]
[1742259268482,27.40003852,126.61,126.56,0.03]
[1742259268668,27.40003852,126.61,126.56,19.53133852]
[1742259268869,27.40003852,126.61,126.56,27.43263852]
[1742259269078,7.8987,126.61,126.56,27.43263852]
[1742259269280,7.8987,126.61,126.56,19.53133852]
[1742259269989,19.50133852,126.6,126.56,0.03]
[1742259270367,1.6422,126.58,126.56,0.03]
[1742259270689,21.14353852,126.58,126.56,0.03]
[1742259271085,7.163,126.62,126.56,0.03]
[1742259271282,27.39973852,126.61,126.56,19.53133852]
[1742259274788,27.46273852,126.61,126.56,19.53133852]
[1742259274977,27.46273852,126.61,126.56,0.03]
[1742259274978,19.50133852,126.6,126.56,0.03]
[1742259275167,19.50133852,126.59,126.56,0.03]
[1742259276491,7.8995,126.59,126.56,0.03]
[1742259281782,0.063,126.61,126.58,12.48992334]
[1742259282589,0.063,126.61,126.59,12.48992334]
[1742259282793,0.063,126.61,126.58,12.48992334]
[1742259283187,0.063,126.61,126.58,19.50511738]
[1742259285595,0.063,126.61,126.58,27.40461738]
[1742259286094,0.063,126.61,126.59,19.50511738]
[1742259287417,0.063,126.61,126.6,19.50511738]
[1742259288612,0.063,126.61,126.6,27.40391738]
[1742259290385,0.063,126.61,126.6,46.05356624]
[1742259291981,0.063,126.61,126.6,19.50511738]
[1742259292797,0.063,126.61,126.6,27.40391738]
[1742259293102,0.063,126.61,126.6,46.05356624]
[1742259293497,0.063,126.61,126.6,53.07356624]
[1742259293705,0.063,126.61,126.6,72.57868362]
[1742259295605,0.063,126.68,126.62,0.28432314]
[1742259295914,0.063,126.68,126.67,19.50511738]
[1742259296104,0.063,126.68,126.67,38.15476624]
[1742259296281,0.063,126.68,126.67,19.50511738]
[1742259297390,0.063,126.68,126.67,27.39961738]
[1742259299602,0.063,126.68,126.67,19.50511738]
[1742259300189,0.063,126.68,126.65,171.66514886]
[1742259300386,0.063,126.68,126.66,19.50511738]
[1742259301113,0.063,126.68,126.67,19.50511738]
[1742259301985,0.063,126.68,126.67,27.39961738]
[1742259302192,0.063,126.68,126.67,46.04926624]
[1742259304310,0.063,126.68,126.65,27.40041738]
[1742259304506,19.56811738,126.68,126.63,145.9966]
[1742259304685,0.063,126.68,126.63,19.50511738]
[1742259305415,19.50511738,126.67,126.62,19.50511738]
[1742259305802,7.8951,126.66,126.62,19.50511738]
[1742259307202,7.8951,126.66,126.61,46.05256624]
[1742259307403,7.8951,126.66,126.62,19.50511738]
[1742259307605,28.90691738,126.66,126.6,19.50511738]
[1742259307790,35.92691738,126.66,126.6,19.50511738]
[1742259307987,19.50511738,126.63,126.58,19.50511738]
[1742259308191,19.50511738,126.63,126.57,26.55024886]
[1742259308410,19.50511738,126.64,126.59,19.50511738]
[1742259308627,19.50511738,126.64,126.58,19.50511738]
[1742259309112,7.897,126.63,126.59,19.50511738]
[1742259309312,19.50511738,126.64,126.59,19.50511738]
[1742259309623,19.50511738,126.65,126.59,19.50511738]
[1742259309792,19.50511738,126.64,126.59,19.50511738]
[1742259311015,27.40181738,126.64,126.59,19.53511738]
[1742259312615,21.08801738,126.6,126.59,0.03]
[1742259313110,1.5829,126.6,126.59,0.03]
[1742259313498,21.08801738,126.6,126.59,0.03]
[1742259314990,1.5829,126.6,126.59,0.03]
[1742259315199,21.05331738,126.64,126.59,19.53511738]
[1742259316810,28.95011738,126.64,126.59,19.53511738]
[1742259318503,19.50511738,126.62,126.59,0.03]
[1742259318897,19.50511738,126.6,126.59,0.03]
[1742259320808,27.40391738,126.6,126.59,0.03]
[1742259322813,27.40391738,126.6,126.56,0.03]
[1742259322814,0.28432314,126.59,126.56,0.03]
[1742259323005,19.50511738,126.57,126.56,0.03]
[1742259323198,26.54511738,126.57,126.56,0.03]
[1742259323813,34.73014052,126.57,126.56,0.03]
[1742259324221,34.44581738,126.57,126.56,0.03]
[1742259324723,7.04,126.57,126.56,0.03]
[1742259324909,19.50511738,126.58,126.56,0.03]
[1742259326413,27.40541738,126.58,126.56,0.03]
[1742259326721,19.50511738,126.57,126.56,0.03]
[1742259327830,27.40581738,126.57,126.56,0.03]
[1742259329431,19.50511738,126.57,126.56,0.03]
[1742259330537,27.40581738,126.57,126.56,0.03]
[1742259331733,20.0,126.57,126.56,0.03]
[1742259332029,39.50511738,126.57,126.56,0.03]
[1742259333826,47.40581738,126.57,126.56,0.03]
[1742259334331,27.40581738,126.57,126.56,0.03]
[1742259334511,27.40541738,126.58,126.56,0.03]
[1742259335419,19.50511738,126.57,126.56,0.03]
[1742259336013,27.40581738,126.57,126.56,0.03]
[1742259339934,27.40581738,126.57,126.56,0.0001]
[1742259339935,27.97446366,126.57,126.56,0.0001]
[1742259340239,27.97446366,126.57,126.55,0.0001]
[1742259340431,47.40641738,126.56,126.55,0.0001]
[1742259340634,20.0,126.53,126.47,0.0217397]
[1742259340819,19.50511738,126.5,126.47,0.0217397]
[1742259341025,7.02,126.52,126.47,0.0217397]
[1742259341026,26.52511738,126.52,126.47,0.0217397]
[1742259341636,19.50511738,126.51,126.47,0.0217397]
[1742259342638,7.9051,126.5,126.47,0.0217397]
[1742259343027,27.40981738,126.51,126.47,0.0217397]
[1742259344735,19.50511738,126.5,126.47,0.0217397]
[1742259345559,39.01023476,126.48,126.44,0.03]
[1742259345730,0.14216157,126.46,126.4,27.25071738]
[1742259345932,19.50511738,126.44,126.4,27.25071738]
[1742259346426,19.50511738,126.44,126.4,7.7456]
[1742259346737,19.50511738,126.45,126.4,27.25071738]
[1742259346933,19.50511738,126.43,126.39,19.50511738]
[1742259347137,19.50511738,126.43,126.4,0.03]
[1742259347342,19.50511738,126.42,126.4,0.03]
[1742259347715,34.47491738,126.43,126.4,0.03]
[1742259347915,7.06,126.43,126.4,0.03]
[1742259348924,19.50511738,126.46,126.41,19.50511738]
[1742259349121,20.0,126.47,126.4,0.03]
[1742259349122,19.50511738,126.43,126.4,0.03]
[1742259349323,19.50511738,126.41,126.37,25.62731738]
[1742259349517,7.08,126.42,126.38,19.50511738]
[1742259350225,7.08,126.42,126.39,19.50511738]
[1742259350428,19.50511738,126.45,126.4,19.50511738]
[1742259350627,19.50511738,126.45,126.37,21.1552]
[1742259350628,19.50511738,126.43,126.37,13.2422]
[1742259350924,19.50511738,126.42,126.37,32.74731738]
[1742259351242,19.50511738,126.42,126.38,19.50511738]
[1742259351541,7.9095,126.43,126.39,19.50511738]
[1742259351839,27.41421738,126.44,126.39,19.50511738]
[1742259354030,27.41421738,126.44,126.37,6.1222]
[1742259354247,19.50511738,126.43,126.38,19.50511738]
[1742259355660,27.41471738,126.43,126.38,19.50511738]
[1742259356947,19.50511738,126.42,126.37,25.62731738]
[1742259358247,21.11671738,126.43,126.38,19.50511738]
[1742259358646,29.02631738,126.43,126.38,19.50511738]
[1742259359632,1.6116,126.43,126.39,19.50511738]
[1742259361953,1.6116,126.43,126.39,27.41691738]
[1742259362342,27.47711738,126.44,126.41,19.50511738]
[1742259362343,0.063,126.44,126.41,19.50511738]
[1742259363348,0.063,126.44,126.42,19.50511738]
[1742259363549,0.063,126.44,126.41,19.50511738]
[1742259364461,0.063,126.44,126.42,7.9101]
[1742259364658,0.063,126.44,126.42,27.41521738]
[1742259365273,0.063,126.44,126.43,19.50511738]
[1742259365435,0.0001,126.44,126.43,182.64196624]
[1742259366439,0.0001,126.44,126.43,190.55146624]
[1742259368362,19.50511738,126.52,126.44,18.64964886]
[1742259368658,27.40911738,126.52,126.47,19.50511738]
[1742259368858,19.50511738,126.51,126.45,7.08]
[1742259369036,19.50511738,126.51,126.46,19.50511738]
[1742259369241,19.50511738,126.52,126.47,19.50511738]
[1742259370361,7.9035,126.53,126.46,19.50511738]
[1742259370563,19.50511738,126.51,126.46,27.41221738]
[1742259370742,19.50511738,126.52,126.47,19.50511738]
[1742259370942,27.40861738,126.53,126.48,19.50511738]
[1742259371359,29.01651738,126.54,126.49,19.50511738]
[1742259371551,1.6086,126.54,126.5,19.50511738]
[1742259372038,29.01631738,126.54,126.49,19.50511738]
[1742259372245,19.50511738,126.51,126.46,157.60511738]
[1742259372442,19.50511738,126.51,126.45,27.41311738]
[1742259372783,7.9051,126.5,126.45,27.41311738]
[1742259373551,7.9051,126.5,126.46,19.50511738]
[1742259373955,27.47281738,126.51,126.46,19.50511738]
[1742259374265,27.47281738,126.51,126.49,19.50511738]
[1742259374266,0.063,126.51,126.49,19.50511738]
[1742259374469,0.063,126.51,126.48,19.50511738]
[1742259374668,0.063,126.51,126.5,19.50511738]
[1742259374866,0.063,126.51,126.5,46.05986624]
[1742259375166,0.063,126.51,126.5,184.15986624]
[1742259379970,19.50511738,126.58,126.5,204.49131252]
[1742259380299,1.6304,126.59,126.55,19.50511738]
[1742259380450,0.063,126.59,126.56,26.62511738]
[1742259380766,0.063,126.59,126.57,7.12]
[1742259380971,0.063,126.59,126.58,19.50511738]
[1742259381350,0.063,126.59,126.57,164.72511738]
[1742259382168,0.063,126.59,126.57,138.1]
[1742259382376,19.56811738,126.59,126.57,138.1]
[1742259382949,0.063,126.59,126.57,138.1]
[1742259384782,0.063,126.59,126.57,157.60511738]
[1742259385302,0.063,126.59,126.57,138.1]
[1742259385973,0.063,126.59,126.56,19.50511738]
[1742259387259,0.063,126.59,126.56,27.40621738]
[1742259389762,0.063,126.59,126.56,19.50511738]
[1742259391565,0.063,126.59,126.56,27.40641738]
[1742259394378,0.063,126.59,126.58,19.50511738]
[1742259395672,0.063,126.59,126.57,19.50511738]
[1742259396372,0.063,126.59,126.57,27.40541738]
[1742259400498,0.063,126.59,126.58,19.50511738]
[1742259400899,0.063,126.59,126.58,26.52511738]
[1742259401878,0.063,126.59,126.58,34.42521738]
[1742259402080,0.063,126.59,126.58,191.74351252]
[1742259402279,0.0001,126.59,126.58,191.74351252]
[1742259404275,0.0001,126.59,126.58,7.02]
[1742259404490,0.0001,126.59,126.58,26.54511738]
[1742259404694,0.0001,126.59,126.58,7.04]
[1742259405980,0.0001,126.59,126.58,34.44521738]
[1742259407683,0.0001,126.59,126.58,26.54511738]
[1742259408298,0.0001,126.59,126.58,34.44521738]
[1742259410505,0.0001,126.59,126.58,53.09486624]
[1742259411694,0.0001,126.59,126.58,34.44521738]
[1742259412481,0.0001,126.59,126.58,26.54511738]
[1742259412780,0.0001,126.59,126.58,7.02]
[1742259414107,0.0001,126.59,126.58,53.07486624]
[1742259414311,0.0001,126.59,126.58,191.17486624]
[1742259415009,0.0001,126.59,126.58,191.60135095]
[1742259415310,0.0001,126.59,126.58,503.74351252]
[1742259415508,0.063,126.64,126.63,19.50511738]
[1742259416102,0.063,126.64,126.63,27.40211738]
[1742259417710,0.063,126.64,126.63,7.897]
[1742259419527,0.063,126.64,126.63,27.40211738]
[1742259422307,0.063,126.64,126.62,172.52251738]
[1742259422907,0.063,126.64,126.63,19.50511738]
[1742259423513,0.063,126.64,126.63,27.40211738]
[1742259427109,0.063,126.64,126.63,20.36945634]
[1742259427412,0.063,126.64,126.63,39.0191052]
[1742259431818,0.063,126.64,126.63,177.54558991]
[1742259432126,0.063,126.64,126.63,177.40342834]
[1742259433427,0.0001,126.64,126.63,177.54558991]
[1742259433622,0.063,126.68,126.64,19.07613357]
[1742259433823,0.063,126.68,126.67,20.36695634]
[1742259434015,0.063,126.68,126.67,27.32695634]
[1742259434933,0.063,126.68,126.67,45.9766052]
[1742259435628,0.063,126.68,126.67,6.96]
[1742259435836,0.063,126.68,126.65,18.64964886]
[1742259437126,0.063,126.68,126.66,12.47245634]
[1742259437542,0.063,126.68,126.67,12.47245634]
[1742259438121,0.063,126.68,126.67,150.99894105]
[1742259438441,0.063,126.68,126.67,150.57245634]
[1742259438944,0.063,126.68,126.67,177.1166052]
[1742259439156,0.063,126.68,126.67,184.12265412]
[1742259439837,0.063,126.68,126.67,176.22815412]
[1742259440054,0.063,126.68,126.67,156.74964886]
[1742259441236,0.063,126.68,126.67,176.22815412]
[1742259441640,0.063,126.68,126.67,38.12815412]
[1742259442558,0.063,126.68,126.67,46.02265412]
[1742259442848,0.063,126.68,126.67,46.44913883]
[1742259445534,0.063,126.68,126.67,38.12815412]
[1742259446265,0.063,126.68,126.67,46.02265412]
[1742259449754,0.063,126.72,126.71,20.0]
[1742259449956,0.063,126.72,126.71,203.20815412]
[1742259450258,0.063,126.72,126.71,183.20815412]
[1742259451248,0.063,126.72,126.71,183.63463883]
[1742259451852,0.063,126.72,126.71,191.52663883]
[1742259452354,0.063,126.72,126.71,191.6688004]
[1742259452741,0.063,126.72,126.71,211.14730566]
[1742259452941,0.0001,126.72,126.71,211.14730566]
[1742259453143,0.0001,126.74,126.72,19.21829514]
[1742259453347,0.063,126.75,126.74,19.07613357]
[1742259453534,0.063,126.75,126.74,176.51247726]
[1742259453735,0.063,126.75,126.74,176.65463883]
[1742259453938,0.063,126.75,126.74,184.54473883]
[1742259454661,0.063,126.75,126.74,184.11825412]
[1742259455035,0.063,126.75,126.74,145.9901]
[1742259455240,0.063,126.75,126.74,46.01825412]
[1742259456457,0.063,126.75,126.74,46.30257726]
[1742259456756,0.063,126.77,126.75,19.07613357]
[1742259456961,0.063,126.77,126.76,26.47850526]
[1742259457259,0.063,126.77,126.76,19.47850526]
[1742259457463,0.063,126.77,126.75,19.47850526]
[1742259457664,0.063,126.77,126.76,19.47850526]
[1742259458245,0.063,126.77,126.76,27.36740526]
[1742259458463,0.063,126.77,126.76,46.01705412]
[1742259458850,0.063,126.77,126.76,184.11705412]
[1742259459754,0.063,126.77,126.76,165.46740526]
[1742259460868,0.063,126.77,126.76,184.11705412]
[1742259461862,0.063,126.77,126.76,184.54353883]
[1742259462745,0.063,126.77,126.76,184.6857004]
[1742259464359,0.063,126.78,126.77,19.07613357]
[1742259464562,0.063,126.78,126.77,176.65463883]
[1742259464771,0.063,126.78,126.77,184.54293883]
[1742259467247,0.063,126.78,126.77,177.50411431]
[1742259470670,0.063,126.78,126.77,177.64627588]